bitfinex/quotes_ETHUSD_20260302
["timestamp","ask_amount","ask_price","bid_price","bid_amount"]
[1772465239268,6.43904105,2040.4,2038.8,7.26482357]
[1772465239469,7.79008055,2040.4,2038.8,7.26482357]
[1772465239836,6.43408055,2040.4,2038.8,7.62511595]
[1772465240337,6.43408055,2040.4,2038.8,6.33682357]
[1772465240535,7.79204105,2040.3,2038.8,6.33682357]
[1772465240768,6.43704105,2040.2,2038.7,7.26482357]
[1772465241147,6.43704105,2040.2,2038.7,0.928]
[1772465241459,6.43704105,2040.2,2038.4,0.928]
[1772465241766,6.43704105,2040.0,2038.4,0.928]
[1772465241971,6.43704105,2039.8,2038.4,0.928]
[1772465242144,6.43704105,2039.8,2038.0,1.71937455]
[1772465242345,6.43704105,2039.8,2038.0,0.927]
[1772465242670,6.43704105,2039.4,2038.0,0.927]
[1772465242870,1.354,2039.3,2038.0,0.927]
[1772465243165,1.354,2039.3,2038.1,0.43208217]
[1772465243638,7.79104105,2039.3,2038.1,0.43208217]
[1772465243835,7.79104105,2039.3,2038.0,0.927]
[1772465244057,7.79104105,2039.3,2038.1,0.43208217]
[1772465244266,6.43704105,2039.3,2038.0,1.35908217]
[1772465244466,1.354,2039.3,2038.1,0.43208217]
[1772465244661,6.43704105,2039.8,2038.1,0.35947713]
[1772465244662,1.354,2039.5,2038.1,0.35947713]
[1772465244866,7.79104105,2039.5,2038.1,0.7915593]
[1772465245170,7.79104105,2039.5,2038.1,0.35947713]
[1772465245359,7.79004105,2039.7,2038.2,6.33682357]
[1772465245561,7.79004105,2039.7,2038.1,0.43208217]
[1772465245830,6.43704105,2039.3,2036.6,0.927]
[1772465245943,6.43704105,2038.6,2036.6,0.927]
[1772465246139,6.43704105,2038.4,2036.6,0.927]
[1772465246644,2.69991479,2039.1,2036.5,0.001]
[1772465246645,7.66361351,2038.2,2036.5,0.001]
[1772465246846,6.43704105,2038.0,2036.5,0.001]
[1772465247693,6.43704105,2037.8,2036.5,0.001]
[1772465249681,2.57987343,2037.7,2036.5,0.001]
[1772465249881,6.43704105,2037.6,2036.5,0.001]
[1772465250266,2.57987343,2037.7,2036.9,0.001]
[1772465250267,6.43704105,2037.4,2036.9,0.001]
[1772465250476,6.43704105,2037.4,2036.5,0.001]
[1772465250798,1.22687343,2037.7,2036.5,0.001]
[1772465250971,6.43704105,2037.8,2036.5,0.001]
[1772465251176,1.354,2037.6,2036.5,0.001]
[1772465251491,6.43704105,2037.8,2036.5,0.001]
[1772465251681,1.354,2037.7,2036.5,0.001]
[1772465251877,6.43704105,2037.8,2036.5,6.33782357]
[1772465252095,1.354,2037.8,2036.5,6.33782357]
[1772465252990,6.43704105,2038.2,2036.5,6.33782357]
[1772465253157,9.01667369,2038.1,2036.5,6.33782357]
[1772465253358,6.43704105,2038.0,2036.5,6.33782357]
[1772465253895,6.43704105,2038.4,2036.5,6.33782357]
[1772465254072,6.43704105,2038.2,2036.5,6.33782357]
[1772465254391,6.43704105,2038.0,2036.5,0.001]
[1772465254602,6.43704105,2037.8,2036.5,0.001]
[1772465254962,6.43704105,2037.6,2036.5,0.001]
[1772465255164,1.353,2037.5,2036.5,0.001]
[1772465255367,6.43704105,2037.6,2036.5,0.001]
[1772465255565,1.353,2037.5,2036.5,0.001]
[1772465255775,6.43704105,2037.4,2036.5,0.001]
[1772465255981,6.43704105,2037.4,2036.2,0.001]
[1772465256313,6.43704105,2037.2,2036.2,0.001]
[1772465256485,6.43704105,2037.6,2036.2,0.001]
[1772465256684,1.353,2037.5,2036.2,0.001]
[1772465256887,1.22705408,2037.4,2036.2,0.001]
[1772465257085,7.78904105,2037.3,2036.2,0.001]
[1772465257877,6.43704105,2037.1,2036.2,0.001]
[1772465258700,1.353,2037.0,2036.2,0.001]
[1772465259803,1.353,2036.9,2036.2,0.001]
[1772465260173,7.66387305,2037.8,2036.2,6.33782357]
[1772465260379,6.43704105,2037.6,2036.2,0.001]
[1772465260692,8.98693006,2037.9,2036.4,1.92907161]
[1772465260897,8.98693006,2037.9,2036.5,6.33682357]
[1772465260898,1.352,2037.8,2036.5,6.33682357]
[1772465261474,1.352,2037.7,2036.5,6.33682357]
[1772465261694,1.22633991,2038.6,2036.9,6.33682357]
[1772465261894,1.92907161,2039.3,2036.6,1.22753608]
[1772465261895,7.78904105,2038.8,2037.3,6.33682357]
[1772465262094,1.92907161,2039.3,2036.9,6.33682357]
[1772465262095,6.43704105,2038.6,2036.9,6.33682357]
[1772465262410,6.43704105,2038.6,2037.1,6.33682357]
[1772465262826,7.78904105,2038.6,2037.1,6.33682357]
[1772465262997,1.352,2038.5,2037.1,6.33682357]
[1772465263325,7.66318676,2039.0,2037.1,6.33682357]
[1772465263520,1.352,2038.9,2037.1,6.33682357]
[1772465263690,1.351,2038.8,2037.1,6.33682357]
[1772465263893,7.66318676,2039.0,2037.1,6.33682357]
[1772465264094,1.351,2038.7,2037.1,6.33682357]
[1772465264502,0.002,2038.4,2037.1,7.25782357]
[1772465265731,0.002,2038.6,2037.6,1.92907161]
[1772465266030,7.66537284,2038.6,2037.2,6.33682357]
[1772465266195,1.349,2038.5,2037.2,6.33682357]
[1772465266392,7.78604105,2038.5,2036.8,7.25782357]
[1772465266795,6.43704105,2038.5,2036.8,7.25782357]
[1772465266990,0.002,2038.6,2037.0,6.33682357]
[1772465267210,0.002,2038.6,2037.4,6.43820354]
[1772465267442,0.002,2038.6,2037.4,7.35820354]
[1772465267734,0.002,2038.6,2037.6,6.43820354]
[1772465268093,0.002,2038.6,2037.6,7.35820354]
[1772465269431,0.002,2038.6,2037.6,6.43820354]
[1772465269724,0.002,2038.6,2037.5,0.92]
[1772465270312,1.348,2038.6,2037.2,6.43820354]
[1772465270516,1.348,2038.6,2036.7,6.43920354]
[1772465270517,7.34508066,2038.6,2036.7,6.43920354]
[1772465271307,7.34508066,2038.6,2036.7,0.001]
[1772465271308,5.99708066,2038.3,2036.7,0.001]
[1772465271706,5.99708066,2037.9,2036.7,0.001]
[1772465271938,1.92907161,2038.0,2036.2,0.001]
[1772465271939,5.99708066,2037.5,2036.2,0.001]
[1772465272103,5.99708066,2037.3,2036.2,0.001]
[1772465272733,5.99708066,2037.1,2036.2,0.001]
[1772465273126,5.99708066,2036.9,2036.2,0.001]
[1772465273310,5.99708066,2036.7,2036.2,0.001]
[1772465273515,1.346,2036.6,2036.2,0.001]
[1772465273725,5.99708066,2036.7,2034.9,6.43820354]
[1772465273903,5.99708066,2036.5,2034.8,0.001]
[1772465274108,5.99708066,2036.4,2034.8,0.001]
[1772465274409,7.28980167,2037.2,2034.9,7.66676514]
[1772465274711,5.99708066,2037.0,2035.4,6.43820354]
[1772465275036,1.22705408,2037.4,2035.7,8.36727515]
[1772465275628,1.346,2037.3,2035.7,8.36727515]
[1772465275934,7.22379542,2038.1,2036.1,1.92907161]
[1772465276232,1.75361968,2037.7,2036.1,6.43820354]
[1772465276429,9.90206806,2037.8,2036.1,6.43820354]
[1772465276602,1.345,2037.6,2036.1,6.43820354]
[1772465278133,9.90206806,2037.8,2035.9,0.918]
[1772465278134,1.344,2037.5,2035.9,0.918]
[1772465278908,7.34108066,2037.5,2035.6,6.43820354]
[1772465279149,7.34108066,2037.5,2035.7,6.43820354]
[1772465279325,8.56812177,2037.5,2035.7,6.43820354]
[1772465279510,5.99708066,2037.4,2035.7,6.43820354]
[1772465279707,5.99708066,2037.2,2035.6,0.35342927]
[1772465280005,7.74862124,2037.1,2035.3,6.43820354]
[1772465280325,5.99708066,2037.1,2035.3,6.43820354]
[1772465280525,1.22704111,2037.5,2035.4,1.2282598]
[1772465280836,1.342,2037.4,2036.0,1.92907161]
[1772465281020,1.342,2037.4,2036.0,8.36727515]
[1772465281336,5.99708066,2037.5,2036.0,8.36727515]
[1772465281534,2.67816053,2037.8,2036.1,6.43820354]
[1772465281746,5.99708066,2037.9,2036.4,8.36727515]
[1772465281945,1.342,2037.8,2036.4,8.36727515]
[1772465282267,8.56589388,2037.8,2036.3,2.60036735]
[1772465282460,5.99708066,2037.4,2035.7,0.33168318]
[1772465282747,5.99708066,2037.2,2035.3,0.917]
[1772465283152,5.99708066,2037.2,2035.2,8.36727515]
[1772465283352,7.22439369,2037.0,2035.2,8.36727515]
[1772465283651,1.342,2036.9,2035.3,6.43820354]
[1772465283865,7.33908066,2036.9,2035.3,6.43820354]
[1772465284424,5.99708066,2036.9,2035.3,6.43820354]
[1772465284608,5.99708066,2036.9,2035.4,6.43820354]
[1772465284609,1.341,2036.9,2035.4,6.43820354]
[1772465285253,7.33808066,2036.9,2035.4,6.43820354]
[1772465285454,1.341,2036.8,2035.4,6.43820354]
[1772465285944,1.341,2036.8,2035.1,0.917]
[1772465285945,8.56549621,2036.8,2035.1,0.917]
[1772465286336,5.99708066,2036.7,2035.1,7.35520354]
[1772465286664,2.67816053,2037.7,2035.1,7.35520354]
[1772465286811,2.67816053,2037.7,2036.2,6.43820354]
[1772465287010,5.99708066,2038.1,2036.2,7.35420354]
[1772465287211,7.74530152,2038.0,2036.2,8.14584006]
[1772465287435,5.99708066,2038.0,2036.5,8.36727515]
[1772465287656,5.99708066,2038.0,2036.5,6.43820354]
[1772465288546,1.34,2037.9,2036.6,6.43820354]
[1772465288948,1.34,2038.1,2036.6,6.43820354]
[1772465289153,1.34,2038.2,2036.6,6.43820354]
[1772465289586,7.22368634,2038.2,2036.6,6.43820354]
[1772465289781,7.33608066,2038.1,2036.6,6.43820354]
[1772465290084,1.341,2038.3,2036.6,6.43820354]
[1772465290284,5.99708066,2038.2,2036.4,0.916]
[1772465291367,5.99708066,2038.0,2036.4,0.916]
[1772465291682,7.22379325,2038.0,2036.4,0.916]
[1772465291856,1.92907161,2037.5,2035.3,0.916]
[1772465292050,5.99708066,2037.3,2036.2,0.001]
[1772465292467,5.99708066,2037.1,2035.4,6.43820354]
[1772465292882,7.33508066,2037.0,2036.0,0.001]
[1772465293486,5.99708066,2037.0,2036.0,0.001]
[1772465293672,1.337,2036.9,2036.0,0.001]
[1772465293872,1.22714038,2037.3,2036.0,0.001]
[1772465294182,1.337,2037.2,2036.0,0.001]
[1772465294792,7.40166615,2037.2,2036.0,0.001]
[1772465294988,6.13020215,2037.6,2036.0,0.001]
[1772465295180,6.06466615,2037.4,2036.0,0.001]
[1772465295383,6.46271564,2037.3,2036.0,0.001]
[1772465295583,7.29190094,2037.1,2036.0,0.001]
[1772465295783,6.06466615,2036.9,2036.0,0.001]
[1772465295972,6.06466615,2036.5,2035.7,0.001]
[1772465296189,6.06466615,2036.5,2035.0,0.001]
[1772465296389,7.79969539,2036.4,2035.0,0.001]
[1772465296592,1.92907161,2036.6,2035.0,0.001]
[1772465296593,6.06466615,2036.2,2035.0,0.001]
[1772465296982,1.337,2036.1,2035.0,0.001]
[1772465297300,6.06466615,2036.7,2035.0,0.001]
[1772465297502,1.337,2036.6,2035.0,6.21541345]
[1772465297803,7.40924536,2036.5,2035.0,0.001]
[1772465298211,6.07224536,2036.5,2035.0,0.001]
[1772465298379,1.337,2036.4,2035.0,6.21541345]
[1772465298711,7.29968298,2036.9,2035.0,6.21541345]
[1772465298925,6.07224536,2036.7,2035.0,0.001]
[1772465299081,7.80651888,2036.6,2035.0,0.001]
[1772465299281,6.07224536,2036.6,2035.0,6.21541345]
[1772465299490,7.40824536,2036.5,2035.0,0.001]
[1772465299807,7.40824536,2036.5,2034.8,0.001]
[1772465299808,6.07224536,2035.6,2034.8,0.001]
[1772465299973,1.336,2035.5,2034.8,0.001]
[1772465300819,1.336,2035.4,2034.8,0.001]
[1772465301217,6.07224536,2036.5,2034.8,0.001]
[1772465301404,7.80674763,2036.4,2034.8,6.21541345]
[1772465301600,0.39850227,2036.3,2034.8,6.21541345]
[1772465301914,6.07224536,2036.0,2034.8,0.001]
[1772465302123,6.13778136,2035.8,2034.8,0.001]
[1772465302438,6.47074763,2035.7,2034.6,0.001]
[1772465302641,6.47074763,2035.6,2034.6,0.001]
[1772465302835,6.07224536,2035.6,2034.6,0.001]
[1772465303040,1.335,2035.5,2034.6,0.001]
[1772465303243,1.335,2035.6,2034.6,0.001]
[1772465303539,7.40724536,2035.6,2034.6,0.001]
[1772465303743,1.22819945,2035.5,2034.6,0.001]
[1772465303904,7.30044481,2035.5,2034.6,0.001]
[1772465304913,6.07224536,2035.3,2034.3,0.001]
[1772465305125,6.07224536,2035.1,2034.1,0.001]
[1772465305317,1.335,2035.0,2034.1,0.001]
[1772465305718,1.335,2035.0,2033.2,6.21441345]
[1772465305907,1.22853904,2035.0,2033.2,6.21441345]
[1772465306237,7.3007844,2035.0,2033.2,6.21441345]
[1772465306449,7.40624536,2034.9,2033.2,6.21441345]
[1772465306601,7.40624536,2034.9,2033.0,0.64981907]
[1772465306804,6.07224536,2034.5,2033.0,0.64981907]
[1772465307635,7.40624536,2034.4,2033.0,0.64981907]
[1772465307846,6.07224536,2034.3,2033.0,0.64981907]
[1772465308225,1.334,2034.2,2033.0,0.64981907]
[1772465308727,4.9801342,2034.8,2033.0,6.86423252]
[1772465308728,6.07224536,2034.8,2033.0,6.86423252]
[1772465309037,1.334,2034.3,2033.0,6.86423252]
[1772465309218,6.07224536,2034.8,2033.0,6.86423252]
[1772465309422,1.333,2034.4,2033.0,6.86423252]
[1772465309747,6.07224536,2034.8,2033.2,0.001]
[1772465309946,1.333,2034.7,2033.2,0.001]
[1772465310247,6.07224536,2034.8,2033.2,6.21541345]
[1772465310248,1.333,2034.8,2033.2,6.21541345]
[1772465310553,7.40524536,2034.8,2033.2,6.21541345]
[1772465311132,6.07224536,2034.6,2033.2,0.001]
[1772465311553,7.40524536,2034.5,2033.2,0.001]
[1772465312769,7.3011089,2034.4,2033.2,0.001]
[1772465313752,0.065536,2034.2,2033.0,0.64981907]
[1772465314252,6.13778136,2034.2,2033.0,0.64981907]
[1772465314723,6.07224536,2034.2,2033.0,0.64981907]
[1772465314928,6.07224536,2034.6,2033.0,7.19343264]
[1772465315125,1.333,2034.7,2033.2,6.21441345]
[1772465315425,1.333,2034.9,2033.2,7.12041345]
[1772465315828,6.07224536,2035.1,2033.2,7.12041345]
[1772465316154,1.2285616,2034.9,2033.2,6.21441345]
[1772465316453,6.13778136,2034.8,2033.2,6.21441345]
[1772465316659,1.332,2034.7,2033.2,6.21441345]
[1772465316823,1.332,2034.6,2033.2,6.21441345]
[1772465317233,7.40424536,2034.6,2033.0,0.64981907]
[1772465317468,6.07224536,2034.4,2033.0,0.64981907]
[1772465318131,1.331,2034.3,2033.0,0.64981907]
[1772465318332,7.40324536,2034.3,2033.0,0.64981907]
[1772465318553,6.13778136,2034.2,2033.0,0.64981907]
[1772465319458,7.40324536,2034.1,2033.0,0.64981907]
[1772465319758,6.07224536,2034.1,2033.0,0.64981907]
[1772465319957,1.331,2034.0,2033.0,0.64981907]
[1772465320132,1.331,2033.9,2033.0,0.64981907]
[1772465321865,6.07224536,2033.7,2032.8,0.1649875]
[1772465322232,6.07224536,2033.7,2032.7,0.001]
[1772465322558,1.22934697,2033.6,2032.7,0.001]
[1772465323362,1.331,2033.9,2033.2,0.001]
[1772465324067,6.07224536,2034.2,2033.2,0.001]
[1772465324250,1.329,2033.8,2033.2,0.001]
[1772465324963,1.329,2033.9,2033.2,0.001]
[1772465325662,0.065536,2033.8,2033.2,0.001]
[1772465325961,6.07224536,2033.9,2033.2,0.001]
[1772465326265,1.328,2033.7,2033.2,0.001]
[1772465327254,6.07224536,2033.9,2033.2,0.001]
[1772465327434,6.20990673,2033.7,2033.0,0.001]
[1772465327962,4.91617914,2034.2,2033.0,0.001]
[1772465327963,1.329,2033.6,2033.0,0.001]
[1772465328285,1.329,2034.1,2033.0,6.14547541]
[1772465328430,1.329,2034.2,2033.0,6.14547541]
[1772465328773,0.002,2034.3,2033.0,6.14547541]
[1772465328774,1.329,2034.1,2033.0,6.14547541]
[1772465328987,0.002,2034.3,2033.0,6.14547541]
[1772465329180,1.331,2034.3,2033.0,6.14547541]
[1772465329469,0.002,2034.3,2033.0,6.14547541]
[1772465330301,6.27744273,2034.3,2033.0,0.001]
[1772465330452,6.27544273,2034.1,2033.0,0.001]
[1772465331170,0.065536,2033.9,2033.0,0.001]
[1772465331346,6.27544273,2033.9,2033.0,0.001]
[1772465331554,6.20990673,2033.8,2033.0,0.001]
[1772465331744,1.327,2033.7,2033.0,0.001]
[1772465331946,6.20990673,2033.8,2033.0,0.001]
[1772465332163,6.20990673,2033.4,2032.7,0.001]
[1772465332484,1.327,2033.3,2032.7,0.001]
[1772465335371,0.065536,2033.4,2032.7,0.001]
[1772465335571,1.326,2033.3,2032.7,0.001]
[1772465336397,1.326,2033.3,2032.5,0.001]
[1772465336702,7.43949555,2033.2,2032.5,0.001]
[1772465336999,7.43926698,2033.7,2032.5,0.001]
[1772465337307,1.326,2033.6,2032.5,0.001]
[1772465337676,7.43926698,2033.7,2032.9,0.001]
[1772465337874,6.27544273,2033.0,2030.7,4.9244103]
[1772465338074,1.326,2032.9,2030.9,6.14447541]
[1772465338285,6.27544273,2033.1,2030.9,6.14447541]
[1772465338500,1.326,2032.8,2032.7,0.001]
[1772465338697,1.326,2032.8,2030.5,4.92465281]
[1772465338698,7.505334,2032.7,2030.5,6.14447541]
[1772465339003,1.326,2032.6,2030.6,0.896]
[1772465339203,6.20990673,2032.5,2032.4,0.001]
[1772465339375,6.20990673,2032.5,2031.2,6.14447541]
[1772465339575,1.327,2032.4,2031.2,6.14447541]
[1772465339809,6.20990673,2032.5,2031.2,6.14447541]
[1772465339987,1.327,2032.3,2031.2,6.14447541]
[1772465340383,7.53690673,2032.3,2030.3,6.14447541]
[1772465340596,7.4401006,2032.2,2030.3,6.14447541]
[1772465340798,1.327,2032.1,2030.5,6.14447541]
[1772465340996,1.327,2032.1,2030.7,6.14447541]
[1772465341721,0.065536,2032.7,2030.7,6.14447541]
[1772465341943,7.43945531,2033.3,2031.0,6.14447541]
[1772465342091,7.43945531,2033.3,2031.2,6.14447541]
[1772465342298,7.53590673,2033.2,2031.2,6.14447541]
[1772465342609,7.50509203,2033.1,2031.2,6.14447541]
[1772465342941,6.20990673,2032.9,2031.2,6.14447541]
[1772465343092,1.326,2032.8,2031.2,6.14447541]
[1772465343294,7.53590673,2032.8,2031.2,6.14447541]
[1772465343520,1.326,2032.7,2031.2,6.14447541]
[1772465343726,1.326,2032.6,2031.2,6.14447541]
[1772465344920,1.325,2033.2,2031.4,6.14447541]
[1772465345214,1.325,2033.2,2031.6,6.14447541]
[1772465346024,6.20990673,2033.6,2031.6,6.14447541]
[1772465346211,1.324,2033.4,2031.6,6.14447541]
[1772465346520,1.324,2033.3,2031.6,6.14447541]
[1772465346702,1.23143358,2033.5,2031.6,6.14447541]
[1772465346907,1.324,2033.4,2031.6,6.14447541]
[1772465347399,6.21190673,2033.5,2031.6,7.37501053]
[1772465347725,1.323,2033.4,2031.6,7.37501053]
[1772465348097,0.002,2033.5,2031.9,6.14447541]
[1772465348290,0.002,2033.5,2032.3,6.14447541]
[1772465348504,0.002,2033.5,2032.4,6.14447541]
[1772465348824,0.002,2033.5,2032.3,6.14447541]
[1772465349033,0.002,2033.5,2032.3,7.37460875]
[1772465349234,0.002,2033.5,2032.3,6.14447541]
[1772465349398,0.002,2033.5,2032.4,7.04047541]
[1772465349829,0.002,2033.5,2032.2,2.65387078]
[1772465350035,6.21190673,2033.5,2032.2,2.65387078]
[1772465350498,6.21190673,2033.5,2032.0,6.14447541]
[1772465350825,0.002,2033.5,2032.0,6.14447541]
[1772465350997,1.321,2033.4,2032.0,6.14447541]
[1772465351618,6.20990673,2033.3,2032.0,6.14447541]
[1772465351844,1.321,2033.2,2032.0,6.14447541]
[1772465352012,0.065536,2033.2,2032.0,6.14447541]
[1772465352203,0.065536,2033.2,2031.7,0.896]
[1772465352204,1.321,2033.1,2031.7,0.896]
[1772465352528,1.321,2033.1,2031.7,6.14447541]
[1772465352931,6.20990673,2033.2,2031.7,6.14447541]
[1772465353237,1.32,2033.1,2031.7,6.14447541]
[1772465354098,1.32,2033.1,2031.8,7.04047541]
[1772465354715,0.002,2033.3,2031.8,7.04047541]
[1772465354998,0.002,2033.3,2031.8,6.14447541]
[1772465355199,5.9826397,2033.3,2031.8,6.14447541]
[1772465355500,6.0461757,2033.2,2031.8,6.14447541]
[1772465355701,7.27576452,2033.2,2031.8,6.14447541]
[1772465356129,7.27576452,2033.2,2031.1,2.70967008]
[1772465356130,5.9806397,2032.2,2030.9,0.001]
[1772465356332,0.065536,2031.8,2030.9,0.001]
[1772465356652,6.0461757,2031.8,2030.9,0.001]
[1772465357155,6.13012469,2031.4,2029.5,5.98334666]
[1772465357363,2.77520608,2031.5,2029.5,5.98334666]
[1772465357364,0.065536,2030.9,2029.5,5.98334666]
[1772465357549,6.03783417,2030.9,2028.8,7.13057956]
[1772465357744,1.319,2030.8,2028.8,5.89832404]
[1772465357937,6.4340507,2030.7,2028.8,5.89832404]
[1772465358134,0.065536,2031.1,2028.8,7.13057956]
[1772465358340,0.065536,2030.9,2028.8,7.13057956]
[1772465358552,0.065536,2030.9,2029.1,5.89832404]
[1772465358742,0.065536,2030.9,2029.3,5.89832404]
[1772465359155,0.065536,2030.9,2029.4,0.896]
[1772465359156,1.318,2030.8,2029.4,0.896]
[1772465359457,2.54904195,2030.8,2029.3,5.89832404]
[1772465359661,2.54904195,2030.8,2029.3,6.79432404]
[1772465359860,6.03783417,2030.7,2028.9,6.79432404]
[1772465360060,7.35583417,2030.7,2028.9,6.79432404]
[1772465360265,6.03783417,2030.7,2029.0,5.89832404]
[1772465360437,1.317,2030.8,2029.0,5.89832404]
[1772465360631,0.065536,2031.0,2029.0,5.89832404]
[1772465360830,1.317,2030.9,2029.2,5.89832404]
[1772465361149,1.317,2031.0,2029.3,5.89832404]
[1772465361348,5.97229817,2031.5,2029.5,5.89832404]
[1772465361349,1.317,2031.3,2029.5,5.89832404]
[1772465361732,2.53307483,2031.7,2029.7,5.89832404]
[1772465362059,0.065536,2031.0,2029.3,0.896]
[1772465362259,0.14948499,2031.2,2028.7,0.1639875]
[1772465362260,6.03783417,2030.8,2029.2,5.89832404]
[1772465362461,6.03783417,2030.8,2028.8,6.79432404]
[1772465362462,5.97229817,2030.4,2028.8,6.79432404]
[1772465362658,0.065536,2030.4,2028.9,5.89832404]
[1772465362958,1.316,2030.9,2029.1,5.89832404]
[1772465363170,0.065536,2030.8,2029.1,5.89832404]
[1772465363358,6.03783417,2030.8,2029.2,6.79332404]
[1772465363933,6.03783417,2030.8,2029.3,0.896]
[1772465364134,6.03783417,2030.8,2029.2,5.89832404]
[1772465364338,7.26887612,2030.8,2029.2,5.89832404]
[1772465364849,7.26887612,2030.8,2029.2,6.79432404]
[1772465365052,7.26887612,2030.8,2029.2,5.89832404]
[1772465365379,5.97229817,2030.3,2028.9,0.896]
[1772465365666,1.315,2030.2,2028.8,6.79432404]
[1772465365878,7.28729817,2030.3,2028.8,6.79432404]
[1772465366042,7.28729817,2030.3,2028.8,5.89832404]
[1772465366043,5.97229817,2030.3,2028.8,5.89832404]
[1772465366249,7.28729817,2030.2,2028.8,5.89832404]
[1772465367072,1.29677312,2030.5,2028.8,6.79432404]
[1772465367280,0.065536,2030.4,2029.4,0.001]
[1772465367441,5.97229817,2031.2,2029.4,6.79532404]
[1772465367639,2.70967008,2031.6,2029.4,6.79532404]
[1772465367640,5.97229817,2031.0,2029.4,6.79532404]
[1772465367847,1.315,2031.2,2029.4,5.89932404]
[1772465368073,0.065536,2031.1,2029.5,6.79332404]
[1772465368272,5.97229817,2031.2,2029.5,6.79332404]
[1772465368472,5.97229817,2031.2,2029.6,0.895]
[1772465368670,0.065536,2030.9,2029.5,5.89832404]
[1772465368975,6.03783417,2030.7,2029.4,0.001]
[1772465369199,1.23104195,2030.8,2029.4,0.001]
[1772465369200,6.03783417,2030.5,2029.4,0.001]
[1772465369692,7.28629817,2030.4,2029.4,0.001]
[1772465370669,6.18731916,2030.3,2029.2,0.001]
[1772465370886,6.18731916,2030.1,2028.7,0.1639875]
[1772465371079,6.03783417,2029.8,2028.7,0.1639875]
[1772465371568,7.35183417,2029.8,2028.7,0.1639875]
[1772465371780,7.20370394,2030.2,2028.7,0.1639875]
[1772465372014,1.379536,2030.1,2028.7,0.1639875]
[1772465372315,1.313,2030.4,2028.8,5.89832404]
[1772465372484,1.313,2030.4,2028.8,7.13057956]
[1772465372811,5.97229817,2031.2,2028.9,5.89832404]
[1772465373012,5.97229817,2031.0,2029.1,5.89832404]
[1772465373724,0.065536,2030.9,2029.1,5.89832404]
[1772465373889,6.03783417,2030.9,2029.1,6.79232404]
[1772465374086,5.97229817,2030.9,2029.1,6.79232404]
[1772465374313,1.313,2030.8,2029.1,6.79232404]
[1772465374622,7.28529817,2031.4,2029.3,5.89832404]
[1772465374785,7.2030371,2031.3,2029.4,0.894]
[1772465374991,0.065536,2031.0,2029.4,5.89832404]
[1772465375188,0.065536,2031.0,2029.2,0.894]
[1772465375189,5.97229817,2030.7,2029.0,5.89832404]
[1772465375464,6.03783417,2030.5,2029.0,5.89832404]
[1772465375888,6.03783417,2030.5,2029.0,0.894]
[1772465376119,7.28429817,2030.5,2029.0,0.894]
[1772465376418,7.28429817,2030.5,2029.1,0.893]
[1772465376713,1.312,2030.4,2029.0,0.893]
[1772465376911,1.312,2030.4,2028.8,5.89832404]
[1772465376912,7.28429817,2030.4,2028.8,5.89832404]
[1772465377091,7.28429817,2030.4,2028.8,0.893]
[1772465377486,5.97229817,2030.4,2028.9,9.07374458]
[1772465377687,5.97229817,2030.4,2029.0,0.893]
[1772465378089,1.312,2030.3,2029.0,0.893]
[1772465378285,7.28429817,2030.3,2028.7,0.1639875]
[1772465378485,7.28429817,2030.3,2028.8,0.893]
[1772465378730,0.065536,2030.4,2028.9,5.89832404]
[1772465378930,1.312,2030.5,2029.0,1.23213405]
[1772465379092,5.97229817,2030.7,2029.0,7.13045809]
[1772465379324,5.97229817,2030.7,2029.1,6.79132404]
[1772465379541,7.20340954,2030.7,2029.1,5.89832404]
[1772465379750,6.03783417,2030.4,2028.7,0.1639875]
[1772465380055,7.28329817,2030.3,2028.7,1.0569875]
[1772465380559,5.97229817,2030.3,2028.7,8.18760275]
[1772465380764,5.97229817,2030.3,2028.7,6.06231154]
[1772465381063,5.97229817,2030.3,2028.8,7.13057956]
[1772465381221,1.311,2030.4,2028.8,7.13057956]
[1772465381417,1.311,2030.4,2028.9,6.79032404]
[1772465381658,0.065536,2030.6,2029.0,0.892]
[1772465381659,5.97229817,2030.6,2029.0,0.892]
[1772465382125,0.065536,2030.5,2029.0,6.79032404]
[1772465382938,5.97229817,2030.6,2029.0,6.79032404]
[1772465383123,5.97229817,2030.6,2029.1,7.13039737]
[1772465383773,5.97229817,2031.2,2029.3,5.89832404]
[1772465384055,5.97229817,2031.1,2029.4,5.89832404]
[1772465384245,5.97229817,2031.1,2029.7,5.89832404]
[1772465384442,5.97229817,2031.5,2029.9,5.89832404]
[1772465384652,7.28229817,2031.5,2029.9,6.79032404]
[1772465384853,5.97229817,2031.5,2029.9,5.89832404]
[1772465385042,0.002,2030.7,2030.0,6.79032404]
[1772465385557,0.002,2030.7,2030.1,0.893]
[1772465385857,0.002,2030.7,2030.0,5.89832404]
[1772465386062,0.002,2030.7,2030.1,0.893]
[1772465386359,0.002,2030.7,2030.0,5.89832404]
[1772465386526,0.002,2030.7,2030.1,0.893]
[1772465386861,0.002,2030.7,2030.2,0.893]
[1772465387451,0.002,2030.7,2030.2,0.894]
[1772465388356,0.002,2030.7,2029.5,7.131417]
[1772465388548,0.002,2030.7,2029.9,0.893]
[1772465389256,0.002,2031.6,2030.0,5.89960741]
[1772465389459,5.9965089,2031.6,2030.1,0.893]
[1772465389626,5.9965089,2031.6,2030.0,5.89960741]
[1772465389829,5.9965089,2031.6,2030.0,6.79260741]
[1772465390030,5.9965089,2031.6,2029.6,1.59178083]
[1772465390031,5.9945089,2031.3,2029.6,0.36003302]
[1772465390254,0.065536,2031.1,2029.6,6.79260741]
[1772465390856,5.9945089,2031.1,2029.7,0.893]
[1772465391059,5.9289729,2031.5,2029.8,5.89960741]
[1772465391572,7.2339729,2031.5,2029.8,5.89960741]
[1772465391937,7.2339729,2031.5,2029.9,7.13119517]
[1772465392150,5.9289729,2031.5,2030.0,5.89960741]
[1772465392353,0.002,2031.6,2030.4,5.89960741]
[1772465392635,0.002,2031.6,2030.6,5.89960741]
[1772465393053,5.9289729,2031.1,2029.8,0.39490063]